bitfinex/quotes_BTCUSD_20220111
["timestamp","ask_amount","ask_price","bid_price","bid_amount"]
[1641887655421,0.253859,42181.0,42178.0,0.02964435]
[1641887656824,0.243859,42181.0,42178.0,0.02964435]
[1641887657474,0.253859,42181.0,42178.0,0.02964435]
[1641887658969,0.243859,42181.0,42180.0,0.0005601]
[1641887659469,0.252859,42181.0,42180.0,0.0005601]
[1641887660774,0.243859,42181.0,42180.0,0.0005601]
[1641887661423,0.253859,42181.0,42180.0,0.0005601]
[1641887662223,0.253859,42181.0,42180.0,0.00754883]
[1641887662424,0.253859,42181.0,42180.0,0.0005601]
[1641887662822,0.243859,42181.0,42180.0,0.0005601]
[1641887663423,0.253859,42181.0,42180.0,0.0005601]
[1641887664624,0.243859,42181.0,42180.0,0.0005601]
[1641887665468,0.253859,42181.0,42180.0,0.0005601]
[1641887666770,0.243859,42181.0,42180.0,0.0005601]
[1641887667471,0.253859,42181.0,42180.0,0.0005601]
[1641887668715,0.243859,42181.0,42180.0,0.0005601]
[1641887669317,0.0007043,42183.0,42182.0,0.02963729]
[1641887669517,0.2445633,42183.0,42182.0,0.02963729]
[1641887670319,0.243859,42183.0,42182.0,0.02963729]
[1641887671516,0.255859,42183.0,42182.0,0.02963729]
[1641887671716,0.250859,42183.0,42182.0,0.02963729]
[1641887672871,0.238859,42183.0,42182.0,0.02963729]
[1641887673467,0.250859,42183.0,42182.0,0.02963729]
[1641887674067,0.250859,42183.0,42182.0,0.03019664]
[1641887674666,0.238859,42183.0,42182.0,0.03019664]
[1641887675569,0.250859,42183.0,42182.0,0.03019664]
[1641887676830,0.238859,42183.0,42182.0,0.03019664]
[1641887677433,0.250859,42183.0,42182.0,0.03019664]
[1641887678834,0.238859,42183.0,42182.0,0.03019664]
[1641887679234,0.238859,42183.0,42182.0,0.02519664]
[1641887679435,0.012,42183.0,42182.0,0.02519664]
[1641887680069,0.00070428,42185.0,42182.0,0.02519664]
[1641887681070,0.38044271,42188.0,42182.0,0.02519664]
[1641887681270,0.00070428,42186.0,42182.0,0.02519664]
[1641887681470,0.011,42185.0,42182.0,0.02519664]
[1641887682570,0.011,42185.0,42184.0,0.00618279]
[1641887682769,0.011,42185.0,42184.0,0.00516611]
[1641887682971,0.011,42185.0,42182.0,0.02519664]
[1641887684022,0.011,42185.0,42184.0,0.00055858]
[1641887684825,0.35521474,42187.0,42184.0,0.00055858]
[1641887685023,0.35591901,42187.0,42184.0,0.00055858]
[1641887685623,0.36691901,42187.0,42184.0,0.00055858]
[1641887686028,0.36621474,42187.0,42184.0,0.00055858]
[1641887686725,0.35521474,42187.0,42184.0,0.00055858]
[1641887686925,0.38114697,42188.0,42184.0,0.00055858]
[1641887687124,0.38044271,42188.0,42184.0,0.00055858]
[1641887687378,0.38114697,42188.0,42184.0,0.00055858]
[1641887687574,0.39214697,42188.0,42184.0,0.00055858]
[1641887688876,0.38114697,42188.0,42186.0,0.00055782]
[1641887689476,0.39144271,42188.0,42186.0,0.00055782]
[1641887690779,0.38044271,42188.0,42186.0,0.00055782]
[1641887691622,0.39144271,42188.0,42186.0,0.00055782]
[1641887692623,0.64256276,42187.0,42186.0,0.00055782]
[1641887693022,0.64256276,42187.0,42186.0,0.00852304]
[1641887693321,0.64256276,42187.0,42186.0,0.00055782]
[1641887693522,0.65356276,42187.0,42186.0,0.00055782]
[1641887694722,0.64256276,42187.0,42186.0,0.00055782]
[1641887695577,0.65356276,42187.0,42186.0,0.00055782]
[1641887696177,0.88555576,42187.0,42186.0,0.00055782]
[1641887696378,1.03185333,42187.0,42186.0,0.00055782]
[1641887696776,0.65,42186.0,42176.0,0.04742806]
[1641887696974,0.059291,42182.0,42177.0,0.00056921]
[1641887697175,0.46525054,42179.0,42177.0,0.00056921]
[1641887697377,0.37394665,42178.0,42177.0,0.00056921]
[1641887697976,0.37394665,42178.0,42176.0,0.04742806]
[1641887698376,0.44037839,42178.0,42176.0,0.04742806]
[1641887698620,0.32430428,42177.0,42176.0,0.04742806]
[1641887698820,0.39623479,42178.0,42176.0,0.04742806]
[1641887698821,0.39623479,42178.0,42177.0,0.00077214]
[1641887699026,0.72338232,42178.0,42177.0,0.00077214]
[1641887699623,0.73238232,42178.0,42177.0,0.00077214]
[1641887700722,0.72338232,42178.0,42177.0,0.00077214]
[1641887701625,0.73238232,42178.0,42177.0,0.00077214]
[1641887702679,0.34594579,42178.0,42177.0,0.00077214]
[1641887702879,0.00714274,42178.0,42177.0,0.00077214]
[1641887703277,0.00714274,42178.0,42177.0,0.00822426]
[1641887703477,0.00714274,42178.0,42177.0,0.00077214]
[1641887703677,0.01314274,42178.0,42177.0,0.00077214]
[1641887704779,0.06006998,42181.0,42177.0,0.00077214]
[1641887704780,0.00078798,42181.0,42177.0,0.00077214]
[1641887705178,0.39170048,42185.0,42180.0,0.0237111]
[1641887705378,0.00078866,42181.0,42180.0,0.0237111]
[1641887705580,0.00678866,42181.0,42180.0,0.0237111]
[1641887706426,0.006,42181.0,42180.0,0.0237111]
[1641887706832,0.00078865,42183.0,42180.0,0.0237111]
[1641887707626,0.006,42183.0,42180.0,0.0237111]
[1641887708828,0.059283,42184.0,42182.0,0.0007693]
[1641887709028,0.3182372,42183.0,42182.0,0.0007693]
[1641887709627,0.34137877,42183.0,42182.0,0.0007693]
[1641887710678,0.02314157,42183.0,42182.0,0.0007693]
[1641887710878,0.00714157,42183.0,42182.0,0.0007693]
[1641887711479,0.25714157,42183.0,42182.0,0.0007693]
[1641887711679,0.27314157,42183.0,42182.0,0.0007693]
[1641887712779,0.25714157,42183.0,42182.0,0.0007693]
[1641887713479,0.25714157,42183.0,42182.0,0.00760663]
[1641887713731,0.02314157,42183.0,42182.0,0.0007693]
[1641887713932,0.36539906,42183.0,42182.0,0.0007693]
[1641887714936,0.34939906,42183.0,42182.0,0.0007693]
[1641887715833,0.82581747,42183.0,42182.0,0.0007693]
[1641887716234,0.48355998,42183.0,42182.0,0.0007693]
[1641887717036,0.46655998,42183.0,42182.0,0.0007693]
[1641887717479,0.78680177,42183.0,42182.0,0.0007693]
[1641887717675,0.80380177,42183.0,42182.0,0.0007693]
[1641887718479,0.48355998,42183.0,42182.0,0.0007693]
[1641887718880,0.00714157,42183.0,42182.0,0.0007693]
[1641887719579,0.02314157,42183.0,42182.0,0.0007693]
[1641887720978,0.00714157,42183.0,42182.0,0.0007693]
[1641887721625,0.02414157,42183.0,42182.0,0.0007693]
[1641887722926,0.00714157,42183.0,42182.0,0.0007693]
[1641887723327,0.7229109,42183.0,42182.0,0.0007693]
[1641887723526,0.3229109,42183.0,42182.0,0.0007693]
[1641887723727,0.3399109,42183.0,42182.0,0.00869771]
[1641887723926,0.3399109,42183.0,42182.0,0.0007693]
[1641887724879,0.3229109,42183.0,42182.0,0.0007693]
[1641887725774,0.3399109,42183.0,42182.0,0.0007693]
[1641887726976,0.3229109,42183.0,42182.0,0.0007693]
[1641887727678,0.3399109,42183.0,42182.0,0.0007693]
[1641887728926,0.3229109,42183.0,42182.0,0.0007693]
[1641887729728,0.3399109,42183.0,42182.0,0.0007693]
[1641887731529,0.00714157,42183.0,42182.0,0.0007693]
[1641887731728,0.02314157,42183.0,42182.0,0.0007693]
[1641887732882,0.00714157,42183.0,42182.0,0.0007693]
[1641887733679,0.02314157,42183.0,42182.0,0.0007693]
[1641887733879,0.02314157,42183.0,42182.0,0.00731939]
[1641887734080,0.02314157,42183.0,42182.0,0.0007693]
[1641887734981,0.00714157,42183.0,42182.0,0.0007693]
[1641887735681,0.02314157,42183.0,42182.0,0.0007693]
[1641887737032,0.00714157,42183.0,42182.0,0.0007693]
[1641887737633,0.02414157,42183.0,42182.0,0.0007693]
[1641887738836,0.02414157,42183.0,42182.0,0.00061544]
[1641887739038,0.00714157,42183.0,42182.0,0.00061544]
[1641887739737,0.01814157,42183.0,42182.0,0.00061544]
[1641887740981,0.00714157,42183.0,42182.0,0.00061544]
[1641887741680,0.01914157,42183.0,42182.0,0.00061544]
[1641887742982,0.00714157,42183.0,42182.0,0.00061544]
[1641887743631,0.01914157,42183.0,42182.0,0.00061544]
[1641887744930,0.00714157,42183.0,42182.0,0.00061544]
[1641887745632,0.01914157,42183.0,42182.0,0.00061544]
[1641887747032,0.00714157,42183.0,42182.0,0.00061544]
[1641887747686,0.01914157,42183.0,42182.0,0.00061544]
[1641887748885,0.00714157,42183.0,42182.0,0.00061544]
[1641887749688,0.01914157,42183.0,42182.0,0.00061544]
[1641887750090,0.01914157,42183.0,42171.0,0.27500726]
[1641887750091,0.05808168,42172.0,42171.0,0.27500726]
[1641887750286,0.05808168,42172.0,42171.0,0.371871]
[1641887753933,0.05808168,42172.0,42171.0,0.37280253]
[1641887755486,0.35100757,42175.0,42171.0,0.37280253]
[1641887755686,0.35100757,42175.0,42172.0,0.371871]
[1641887756289,0.05927697,42175.0,42172.0,0.791871]
[1641887756887,2.01552334,42174.0,42172.0,0.791871]
[1641887757086,2.01552334,42174.0,42169.0,0.00123202]
[1641887757685,2.01552334,42174.0,42165.0,0.17018446]
[1641887757886,2.01552334,42174.0,42163.0,0.15822074]
[1641887757887,2.01552334,42174.0,42164.0,0.0012415]
[1641887758087,2.01552334,42174.0,42166.0,0.31161495]
[1641887758286,2.01552334,42174.0,42168.0,0.42017672]
[1641887758488,2.01552334,42174.0,42160.0,0.6501266]
[1641887758489,2.01552334,42174.0,42162.0,0.00121693]
[1641887758729,2.01552334,42174.0,42165.0,0.46723875]
[1641887758933,2.01552334,42174.0,42171.0,0.00077627]
[1641887759634,1.00769616,42174.0,42171.0,0.00077627]
[1641887759829,1.02869616,42174.0,42171.0,0.00077627]
[1641887760231,1.00769616,42173.0,42171.0,0.00077627]
[1641887761831,0.023,42173.0,42171.0,0.00077627]
[1641887762031,0.023,42173.0,42172.0,1.29743439]
[1641887762231,0.023,42173.0,42172.0,1.66930539]
[1641887762688,0.023,42173.0,42172.0,0.95228834]
[1641887762885,0.023,42173.0,42172.0,1.50228834]
[1641887763082,0.00079157,42177.0,42172.0,1.50228834]
[1641887763286,0.00079157,42177.0,42173.0,0.419171]
[1641887763484,0.00079157,42177.0,42174.0,0.43714659]
[1641887763783,0.02479157,42177.0,42175.0,0.371871]
[1641887763983,0.024,42177.0,42175.0,0.371871]
[1641887764187,0.024,42177.0,42175.0,1.17020479]
[1641887764383,0.024,42177.0,42176.0,0.8973]
[1641887764587,0.024,42177.0,42176.0,1.269171]
[1641887764984,0.0007916,42178.0,42176.0,1.76735834]
[1641887765184,0.05926955,42179.0,42177.0,0.671871]
[1641887765385,0.06006114,42179.0,42177.0,0.671871]
[1641887766232,0.06006114,42179.0,42178.0,0.89818734]
[1641887766434,0.05926955,42179.0,42178.0,1.27005834]
[1641887766632,0.05926955,42179.0,42178.0,0.87005834]
[1641887768933,0.05926955,42179.0,42178.0,0.37264194]
[1641887769884,0.25252057,42182.0,42178.0,0.37264194]
[1641887770084,0.00078962,42181.0,42179.0,0.371871]
[1641887771082,0.25252057,42182.0,42180.0,0.67579175]
[1641887771285,0.25331018,42182.0,42181.0,0.371871]
[1641887771483,0.00178961,42182.0,42181.0,0.371871]
[1641887771882,0.05278961,42182.0,42181.0,0.371871]
[1641887772083,0.05278961,42182.0,42181.0,0.42]
[1641887772282,0.052,42182.0,42181.0,0.42]
[1641887772485,0.33689831,42182.0,42181.0,0.42]
[1641887772684,0.33689831,42182.0,42181.0,1.09579175]
[1641887772884,0.052,42182.0,42181.0,1.09579175]
[1641887773087,0.001,42182.0,42181.0,1.09579175]
[1641887773384,0.001,42182.0,42181.0,0.42]
[1641887773831,0.049,42182.0,42181.0,0.42]
[1641887774032,0.049,42182.0,42181.0,0.42076866]
[1641887775034,0.001,42182.0,42181.0,0.42076866]
[1641887775833,0.054,42182.0,42181.0,0.42076866]
[1641887776636,0.054,42182.0,42181.0,0.79263966]
[1641887777036,0.001,42182.0,42181.0,0.79263966]
[1641887777787,0.054,42182.0,42181.0,0.79263966]
[1641887777990,0.054,42182.0,42181.0,0.83993966]
[1641887778990,0.054,42182.0,42181.0,1.43764462]
[1641887779588,0.001,42182.0,42181.0,1.43764462]
[1641887779790,0.001,42182.0,42181.0,0.85693966]
[1641887780192,0.001,42182.0,42181.0,1.24356983]
[1641887780590,0.00078942,42184.0,42181.0,1.24356983]
[1641887780790,0.001,42187.0,42182.0,0.371871]
[1641887780992,0.0007894,42184.0,42183.0,0.0473]
[1641887781229,0.0007894,42184.0,42183.0,0.419171]
[1641887781829,0.0007894,42184.0,42183.0,0.435171]
[1641887782031,0.001,42187.0,42183.0,0.435171]
[1641887782230,0.00078938,42186.0,42183.0,0.435171]
[1641887782430,0.00078938,42186.0,42184.0,0.38475298]
[1641887782630,0.00078938,42186.0,42185.0,0.419171]
[1641887783233,0.001,42187.0,42185.0,0.487571]
[1641887783432,0.001,42187.0,42186.0,0.25835701]
[1641887783631,0.001,42187.0,42186.0,0.371871]
[1641887784231,0.001,42187.0,42186.0,1.00972926]
[1641887785689,0.001,42187.0,42186.0,0.371871]
[1641887785890,0.001,42187.0,42186.0,0.393871]
[1641887786189,0.001,42187.0,42186.0,0.633871]
[1641887786990,0.001,42187.0,42186.0,1.01881712]
[1641887787189,0.001,42187.0,42186.0,0.99681712]
[1641887787789,0.001,42187.0,42186.0,1.01481712]
[1641887788192,0.001,42187.0,42186.0,1.01611688]
[1641887788392,0.001,42187.0,42186.0,1.28748688]
[1641887788630,0.001,42187.0,42186.0,1.32200452]
[1641887788830,0.001,42187.0,42186.0,0.90323605]
[1641887789032,0.06151,42187.0,42186.0,0.88523605]
[1641887789231,0.06151,42187.0,42186.0,1.44817587]
[1641887789832,0.06151,42187.0,42186.0,1.46217587]
[1641887790233,0.00078937,42189.0,42187.0,1.20756166]
[1641887790435,0.0035036,42197.0,42195.0,0.06051]
[1641887790643,0.0035036,42197.0,42195.0,0.10781]
[1641887791936,0.0035036,42197.0,42195.0,0.11981]
[1641887792136,0.0035036,42197.0,42196.0,0.432381]
[1641887793288,0.0035036,42197.0,42196.0,0.83678076]
[1641887793484,0.1035036,42197.0,42196.0,0.432381]
[1641887793885,0.1035036,42197.0,42196.0,0.44507059]
[1641887794086,0.0035036,42197.0,42196.0,0.44507059]
[1641887794585,0.0035036,42197.0,42196.0,0.49237059]
[1641887795185,0.0035036,42197.0,42196.0,1.08789615]
[1641887795789,0.0035036,42197.0,42196.0,1.07589615]
[1641887795988,0.0035036,42197.0,42196.0,0.73337059]
[1641887796634,0.0035036,42197.0,42196.0,1.32860673]
[1641887797234,0.0035036,42197.0,42196.0,1.31560673]
[1641887797834,0.0035036,42197.0,42196.0,1.32860673]
[1641887798035,0.0007893,42199.0,42196.0,1.32860673]
[1641887798236,0.001,42208.0,42198.0,0.06177944]
[1641887798438,0.001,42208.0,42206.0,0.65151]
[1641887798634,0.001,42208.0,42206.0,1.134781]
[1641887798834,0.001,42208.0,42206.0,1.47359002]
[1641887799034,3.59e-05,42208.0,42207.0,0.432381]
[1641887799234,3.59e-05,42208.0,42207.0,1.070681]
[1641887799892,3.59e-05,42208.0,42207.0,1.083681]
[1641887800689,0.1000359,42208.0,42207.0,1.083681]
[1641887800887,0.1000359,42208.0,42207.0,1.93106096]
[1641887801192,0.1000359,42208.0,42207.0,1.91806096]
[1641887801986,0.1000359,42208.0,42207.0,0.491681]
[1641887802187,0.1605459,42208.0,42207.0,0.01781673]
[1641887803188,0.1605459,42208.0,42207.0,0.37747573]
[1641887803840,0.1605459,42208.0,42207.0,0.38907561]
[1641887804437,0.1605459,42208.0,42207.0,0.38325888]
[1641887804638,0.0605459,42208.0,42207.0,0.38325888]
[1641887804842,0.0605459,42208.0,42207.0,0.9769942]
[1641887805237,0.0605459,42208.0,42207.0,0.9659942]
[1641887805838,0.0605459,42208.0,42207.0,0.9769942]
[1641887806840,0.0605459,42208.0,42207.0,0.62325888]
[1641887807240,0.0605459,42208.0,42207.0,0.61225888]
[1641887807890,0.0605459,42208.0,42207.0,0.62325888]
[1641887808088,0.33885605,42208.0,42207.0,1.2169942]
[1641887808490,0.33885605,42208.0,42207.0,0.62325888]
[1641887809290,0.33885605,42208.0,42207.0,0.61225888]
[1641887809990,0.33885605,42208.0,42207.0,0.62425888]
[1641887810190,0.0605459,42208.0,42207.0,0.62425888]
[1641887810489,3.59e-05,42208.0,42207.0,0.62425888]
[1641887811141,0.3949396,42208.0,42207.0,0.61225888]
[1641887811449,0.77482072,42208.0,42207.0,0.24059988]
[1641887811748,0.77482072,42208.0,42204.0,0.59373532]
[1641887811749,0.06051,42206.0,42204.0,0.59373532]
[1641887811942,0.87426038,42205.0,42204.0,0.59373532]
[1641887812142,0.612868,42205.0,42204.0,0.11978039]
[1641887812343,0.612868,42205.0,42203.0,0.00079326]
[1641887812545,0.432169,42204.0,42203.0,0.00079326]
[1641887813147,0.81205012,42204.0,42196.0,0.69477983]
[1641887813343,0.44039112,42204.0,42201.0,0.00079333]
[1641887813544,0.16051,42202.0,42201.0,0.00079333]
[1641887813746,0.4895384,42202.0,42201.0,0.00079333]
[1641887813944,0.4895384,42202.0,42201.0,0.01079333]
[1641887814248,0.16051,42202.0,42201.0,0.01079333]
[1641887814445,0.16051,42202.0,42201.0,0.01]
[1641887815284,0.49361544,42202.0,42201.0,0.01]
[1641887815484,0.49361544,42202.0,42197.0,0.69477983]
[1641887815686,0.35629882,42198.0,42197.0,0.69477983]
[1641887815888,0.06051,42198.0,42197.0,0.371659]
[1641887816088,0.34900388,42206.0,42202.0,0.06051]
[1641887816489,0.1,42203.0,42202.0,0.06051]
[1641887816688,0.4279648,42203.0,42202.0,0.06051]
[1641887816891,1.00618559,42203.0,42202.0,0.06051]
[1641887817588,1.37784459,42203.0,42202.0,0.06051]
[1641887817988,1.37784459,42203.0,42202.0,0.06951]
[1641887817989,1.41184459,42203.0,42202.0,0.06951]
[1641887818189,1.08387979,42203.0,42202.0,0.06951]
[1641887818841,1.41917222,42203.0,42202.0,0.07021366]
[1641887819241,1.37671345,42203.0,42202.0,0.06121366]
[1641887819442,1.00505445,42203.0,42202.0,0.06121366]
[1641887820039,0.72522079,42203.0,42202.0,0.06921366]
[1641887820240,1.05001104,42203.0,42202.0,0.06921366]
[1641887820844,0.72522079,42203.0,42202.0,0.06921366]
[1641887821241,0.67322079,42203.0,42202.0,0.06121366]
[1641887822045,0.72122079,42203.0,42202.0,0.06921366]
[1641887822794,0.46484396,42203.0,42202.0,0.6639437]
[1641887823089,0.41684396,42203.0,42202.0,0.06121366]
[1641887823288,0.41684396,42203.0,42202.0,1.20738684]
[1641887823289,0.095,42203.0,42202.0,1.20738684]
[1641887823889,0.095,42203.0,42202.0,0.06121366]
[1641887824089,0.095,42203.0,42202.0,0.07121366]
[1641887824492,0.095,42203.0,42202.0,1.21738684]
[1641887824992,0.095,42203.0,42202.0,0.07121366]
[1641887825193,0.065,42203.0,42202.0,0.06121366]
[1641887825594,0.065,42203.0,42202.0,1.21151713]
[1641887825993,0.065,42203.0,42202.0,1.22151713]
[1641887826437,0.06,42203.0,42202.0,1.22151713]
[1641887827237,0.06,42203.0,42202.0,1.21151713]
[1641887828639,0.06,42203.0,42202.0,1.22151713]
[1641887829243,0.06,42203.0,42202.0,1.21151713]
[1641887829985,0.06,42203.0,42202.0,1.22151713]
[1641887831182,0.06,42203.0,42202.0,1.21151713]
[1641887831404,0.06,42203.0,42202.0,0.5167373]
[1641887831981,0.06,42203.0,42202.0,0.5267373]
[1641887832586,0.06,42203.0,42202.0,1.22105111]
[1641887833183,0.06,42203.0,42202.0,0.06121366]
[1641887833844,0.06,42203.0,42202.0,0.5167373]
[1641887834043,0.06,42203.0,42202.0,0.5267373]
[1641887835249,0.00085393,42207.0,42202.0,0.5167373]
[1641887835555,0.00085393,42207.0,42206.0,0.00123002]
[1641887835751,0.00085393,42207.0,42206.0,0.06174002]
[1641887835945,3.59e-05,42208.0,42206.0,0.06174002]
[1641887835946,3.59e-05,42208.0,42206.0,0.48339902]
[1641887836147,3.59e-05,42208.0,42206.0,1.08892266]
[1641887836547,3.59e-05,42208.0,42206.0,0.93892266]
[1641887836745,3.59e-05,42208.0,42207.0,0.45552364]
[1641887836946,3.59e-05,42208.0,42207.0,0.88769264]
[1641887837986,3.59e-05,42208.0,42207.0,0.89869264]
[1641887838390,3.59e-05,42208.0,42207.0,1.59224037]
[1641887838786,3.59e-05,42208.0,42207.0,1.59294022]
[1641887838986,3.59e-05,42208.0,42207.0,1.13741658]
[1641887839188,3.59e-05,42208.0,42207.0,0.43286885]
[1641887840089,3.59e-05,42208.0,42207.0,0.44386885]
[1641887840889,3.59e-05,42208.0,42207.0,1.5462735]
[1641887841359,3.59e-05,42208.0,42207.0,1.5352735]
[1641887841943,3.59e-05,42208.0,42207.0,1.5462735]
[1641887842245,3.59e-05,42208.0,42207.0,0.85272577]
[1641887842645,3.59e-05,42208.0,42207.0,0.90272577]
[1641887842846,3.59e-05,42208.0,42207.0,0.85272577]
[1641887843246,3.59e-05,42208.0,42207.0,0.84172577]
[1641887844045,3.59e-05,42208.0,42207.0,0.85272577]
[1641887844247,0.30828348,42208.0,42207.0,0.85272577]
[1641887844447,0.30828348,42208.0,42207.0,0.48106677]
[1641887844650,0.30828348,42208.0,42207.0,0.07220985]
[1641887845284,0.30828348,42208.0,42207.0,0.06120985]
[1641887845684,3.59e-05,42208.0,42207.0,0.06120985]
[1641887846084,3.59e-05,42208.0,42207.0,0.06720985]
[1641887846686,0.29884639,42208.0,42207.0,0.06720985]
[1641887847285,3.59e-05,42208.0,42207.0,0.06120985]
[1641887847486,0.30118656,42208.0,42207.0,0.06120985]
[1641887847686,3.59e-05,42208.0,42207.0,0.06120985]
[1641887848091,3.59e-05,42208.0,42207.0,0.06920985]
[1641887849240,3.59e-05,42208.0,42207.0,0.43286885]
[1641887849842,3.59e-05,42208.0,42207.0,1.31079214]
[1641887850040,3.59e-05,42208.0,42207.0,1.42279214]
[1641887850441,3.59e-05,42208.0,42207.0,0.8275994]
[1641887850648,3.59e-05,42208.0,42207.0,1.23749014]
[1641887850842,0.008,42209.0,42208.0,0.06051]
[1641887851045,0.008,42209.0,42208.0,0.432169]
[1641887852043,0.008,42209.0,42208.0,0.85605974]
[1641887853387,0.008,42209.0,42208.0,0.84205974]
[1641887853988,0.008,42209.0,42208.0,0.85775884]
[1641887854389,0.008,42209.0,42208.0,1.25591235]
[1641887854689,0.008,42209.0,42208.0,1.30591235]
[1641887855186,0.008,42209.0,42208.0,1.29091235]
[1641887855386,0.008,42209.0,42208.0,0.89275884]
[1641887856141,0.008,42209.0,42208.0,0.90675884]
[1641887856942,0.008,42209.0,42208.0,0.85675884]
[1641887857343,0.008,42209.0,42208.0,0.84275884]
[1641887858143,0.008,42209.0,42208.0,0.85875884]
[1641887858343,0.008,42209.0,42208.0,0.90875884]
[1641887859345,0.008,42209.0,42208.0,0.89275884]
[1641887859544,0.008,42209.0,42208.0,1.28062187]
[1641887859989,0.008,42209.0,42208.0,0.90875884]
[1641887860191,0.008,42209.0,42208.0,1.01373489]
[1641887860592,0.008,42209.0,42208.0,1.00875884]
[1641887860889,0.008,42209.0,42208.0,1.80708271]
[1641887861095,0.06179281,42211.0,42208.0,1.80708271]
[1641887861096,0.002,42215.0,42210.0,1.032169]
[1641887861293,0.00855105,42213.0,42212.0,0.36051]
[1641887861491,0.002,42215.0,42214.0,0.86051]
[1641887861693,0.00417071,42218.0,42216.0,0.71340269]
[1641887861894,0.00417071,42218.0,42216.0,0.34174369]
[1641887862093,0.00417071,42218.0,42217.0,0.10781]
[1641887862300,0.001,42218.0,42217.0,0.10781]
[1641887862503,0.003,42225.0,42217.0,0.10781]
[1641887862504,0.00313621,42226.0,42221.0,1.25]
[1641887862703,0.004,42229.0,42227.0,0.46182063]
[1641887862894,0.004,42229.0,42227.0,0.66259063]
[1641887863094,0.004,42229.0,42227.0,0.71259063]
[1641887863496,0.00683446,42231.0,42228.0,1.2]
[1641887863748,0.60425032,42235.0,42232.0,0.06051]
[1641887863945,0.11299586,42236.0,42235.0,0.06051]
[1641887864148,0.11299586,42236.0,42235.0,0.15781]
[1641887864344,0.11299586,42236.0,42235.0,0.529469]
[1641887864545,0.60425032,42241.0,42237.0,0.06051]
[1641887864749,0.60425032,42241.0,42239.0,0.432169]
[1641887864946,0.001,42246.0,42239.0,0.479469]
[1641887865345,0.001,42246.0,42241.0,0.06051]
[1641887865548,0.0115862,42249.0,42245.0,0.00123203]
[1641887865751,0.60725032,42252.0,42249.0,0.92783394]
[1641887865946,0.70529646,42253.0,42252.0,0.432169]
[1641887865947,0.45534678,42253.0,42252.0,0.432169]
[1641887866146,0.001,42254.0,42252.0,0.497419]
[1641887866147,0.60482117,42254.0,42252.0,0.497419]
[1641887866349,0.00341052,42255.0,42253.0,0.00122959]
[1641887866548,0.45971198,42256.0,42255.0,0.06051]
[1641887866748,0.02788326,42256.0,42255.0,2.20689112]
[1641887866948,0.8070531,42263.0,42259.0,0.06051]
[1641887867148,0.001,42263.0,42262.0,0.06051]
[1641887867402,0.001,42263.0,42262.0,0.10781]
[1641887867795,0.001,42263.0,42262.0,0.34781]
[1641887867995,0.001,42263.0,42262.0,0.35981]
[1641887868297,0.001,42263.0,42262.0,0.731161]
[1641887868702,0.001,42263.0,42262.0,0.35981]
[1641887868899,0.001,42263.0,42262.0,0.36052106]
[1641887869299,0.001,42263.0,42262.0,0.34852106]
[1641887869502,0.004,42269.0,42262.0,0.34852106]
[1641887869700,0.19548714,42274.0,42268.0,0.00126271]
[1641887869905,0.19548714,42274.0,42273.0,0.06178754]
[1641887870101,0.19548714,42274.0,42273.0,0.10908754]
[1641887870699,0.19548714,42274.0,42273.0,0.48043854]
[1641887870904,0.006498,42278.0,42276.0,0.00125721]
[1641887871139,0.006498,42278.0,42277.0,0.479161]
[1641887871942,0.001,42278.0,42277.0,0.53947353]
[1641887872141,0.001,42278.0,42277.0,0.55547353]
[1641887872339,0.001,42278.0,42277.0,0.49637053]
[1641887872939,0.001,42278.0,42277.0,0.495161]
[1641887873142,0.001,42278.0,42277.0,0.12381]
[1641887873343,0.001,42278.0,42277.0,0.10781]
[1641887873543,0.69018628,42278.0,42277.0,0.10781]
[1641887873743,1.88264082,42278.0,42277.0,0.06051]
[1641887873943,1.76777279,42278.0,42277.0,0.06111423]
[1641887874146,1.78277279,42278.0,42277.0,0.06311423]
[1641887875392,1.86777279,42278.0,42277.0,0.06111423]
[1641887875591,1.86777279,42278.0,42262.0,0.00123097]
[1641887875592,0.06051,42276.0,42262.0,0.00123097]
[1641887875793,0.06051,42276.0,42260.0,0.0473]
[1641887875794,0.06051,42267.0,42260.0,0.0473]
[1641887875991,0.00834535,42276.0,42260.0,0.0473]
[1641887875992,0.06051,42261.0,42260.0,0.0473]
[1641887876192,0.39434058,42261.0,42260.0,0.0473]
[1641887876394,0.06051,42261.0,42260.0,0.0473]
[1641887876797,0.06051,42261.0,42260.0,0.89805312]
[1641887876994,0.2439264,42269.0,42260.0,0.89805312]
[1641887877193,0.00078817,42263.0,42261.0,0.06051]
[1641887877393,0.00078817,42263.0,42262.0,0.431861]
[1641887878097,0.00078816,42265.0,42262.0,0.465861]
[1641887878295,0.00078816,42265.0,42262.0,0.09451]
[1641887878496,0.371351,42264.0,42262.0,0.09451]
[1641887878950,0.371351,42264.0,42262.0,0.09513124]
[1641887879356,0.371351,42264.0,42253.0,0.00066554]
[1641887879361,0.00121838,42257.0,42253.0,0.00066554]
[1641887879651,0.00129743,42254.0,42253.0,0.00066554]
[1641887879849,1.42644303,42254.0,42253.0,0.00066554]
[1641887880049,1.42644303,42254.0,42237.0,0.3682096]
[1641887880050,0.06051,42252.0,42237.0,0.3682096]
[1641887880249,0.06051,42244.0,42242.0,0.4026343]
[1641887880450,0.06051,42244.0,42243.0,0.371351]
[1641887881057,0.06051,42244.0,42243.0,0.7395606]
[1641887881253,0.06051,42244.0,42243.0,1.13515581]
[1641887881451,0.06051,42244.0,42243.0,0.76694621]
[1641887881648,0.06051,42244.0,42243.0,2.28066595]
[1641887881848,0.06051,42244.0,42243.0,1.91596471]
[1641887882053,0.05886284,42244.0,42243.0,0.57264142]
[1641887882410,0.3682096,42256.0,42243.0,0.431861]
[1641887882602,0.3682096,42256.0,42243.0,0.16051]
[1641887883099,0.3682096,42256.0,42243.0,0.13239206]
[1641887883100,0.36863729,42256.0,42243.0,0.13239206]
[1641887883801,0.1,42253.0,42243.0,0.13239206]
[1641887884003,0.00123619,42250.0,42245.0,0.00079589]
[1641887884203,0.050596,42249.0,42248.0,0.06051]
[1641887884403,0.42612759,42249.0,42248.0,0.06051]
[1641887884606,0.79747859,42249.0,42248.0,0.06051]
[1641887884801,0.371351,42249.0,42248.0,0.06051]
[1641887885201,0.69288419,42249.0,42248.0,0.06051]
[1641887885601,1.04288419,42249.0,42248.0,0.06051]
[1641887885800,1.05983047,42249.0,42248.0,0.06051]
[1641887886239,1.07283047,42249.0,42248.0,0.06051]
[1641887886442,1.07283047,42249.0,42245.0,0.00079589]
[1641887886443,1.13334047,42249.0,42245.0,0.00079589]